bitfinex-derivatives/quotes_BTCF0:USTF0_20250709
["timestamp","ask_amount","ask_price","bid_price","bid_amount"]
[1752030954743,0.44915776,108500.0,108490.0,0.9103624]
[1752030955742,0.44915776,108500.0,108490.0,0.901117]
[1752030956338,0.44915776,108500.0,108490.0,0.98371872]
[1752030956547,0.44915776,108500.0,108490.0,1.03892099]
[1752030957648,0.44915776,108500.0,108490.0,1.04835335]
[1752030957946,0.44915776,108500.0,108490.0,1.03892099]
[1752030958840,0.44915776,108500.0,108490.0,1.00822099]
[1752030959041,1.07575301,108500.0,108490.0,0.79860399]
[1752030959242,0.72575301,108500.0,108490.0,0.79840399]
[1752030959441,0.72575301,108500.0,108490.0,0.98271079]
[1752030959644,1.05575301,108500.0,108490.0,0.79840399]
[1752030960043,1.05575301,108500.0,108490.0,0.74320172]
[1752030960346,1.07575301,108500.0,108490.0,0.79839956]
[1752030960552,0.72575301,108500.0,108490.0,0.15555956]
[1752030963356,0.72575301,108500.0,108490.0,0.10036172]
[1752030963851,0.72575301,108500.0,108490.0,0.28466852]
[1752030964155,0.72575301,108500.0,108490.0,0.15554239]
[1752030964354,0.72575301,108500.0,108490.0,0.28466852]
[1752030964545,0.72575301,108500.0,108490.0,0.15553991]
[1752030967252,0.72575301,108500.0,108490.0,0.33984671]
[1752030968157,0.47325776,108500.0,108490.0,0.33984671]
[1752030968347,0.72575301,108500.0,108490.0,0.33984671]
[1752030970058,0.72575301,108500.0,108490.0,0.28466852]
[1752030971156,0.72575301,108500.0,108490.0,0.3398257]
[1752030972358,0.72575301,108500.0,108490.0,0.10036172]
[1752030974361,0.72575301,108500.0,108490.0,0.28466852]
[1752030976561,0.47325776,108500.0,108490.0,0.28466852]
[1752030976759,0.72575301,108500.0,108490.0,0.28466852]
[1752030978065,0.40308446,108500.0,108490.0,0.55970377]
[1752030978364,0.32551146,108500.0,108490.0,0.59230377]
[1752030979058,0.32551146,108500.0,108490.0,0.50970205]
[1752030979659,0.32551146,108500.0,108490.0,0.61991758]
[1752030984265,0.32551146,108500.0,108490.0,0.50970205]
[1752030985266,0.32551146,108500.0,108490.0,0.64748866]
[1752030986167,0.39551146,108500.0,108490.0,0.64748866]
[1752030986368,0.39551146,108500.0,108490.0,0.50970205]
[1752030986869,0.39551146,108500.0,108490.0,0.64748866]
[1752030987269,0.39551146,108500.0,108490.0,0.50970205]
[1752030987473,0.21714764,108500.0,108490.0,0.50970205]
[1752030987671,0.21714764,108500.0,108490.0,0.54070205]
[1752030987867,0.14714764,108500.0,108490.0,0.54070205]
[1752030988174,0.1130175,108500.0,108490.0,0.65127226]
[1752030988368,0.1130175,108500.0,108490.0,0.68127226]
[1752030989673,0.1282075,108500.0,108490.0,0.68127226]
[1752030989873,0.1130175,108500.0,108490.0,0.68127226]
[1752030990072,0.1130175,108500.0,108490.0,0.57070205]
[1752030991876,0.1282075,108500.0,108490.0,0.57070205]
[1752030992066,0.1130175,108500.0,108490.0,0.68127226]
[1752030992267,0.1130175,108500.0,108490.0,0.42877701]
[1752030992571,0.1130175,108500.0,108490.0,0.68127226]
[1752030993474,0.1282075,108500.0,108490.0,0.68127226]
[1752030993675,0.1130175,108500.0,108490.0,0.68127226]
[1752030994072,0.1282075,108500.0,108490.0,0.68127226]
[1752030994275,0.1130175,108500.0,108490.0,0.68127226]
[1752030994479,0.1282075,108500.0,108490.0,0.68127226]
[1752030994776,0.1130175,108500.0,108490.0,0.68127226]
[1752030996170,0.1282075,108500.0,108490.0,0.68127226]
[1752030996479,0.2973075,108500.0,108490.0,0.68127226]
[1752030998977,0.2973075,108500.0,108490.0,0.42877701]
[1752030999181,0.97233472,108500.0,108490.0,0.15833021]
[1752030999379,0.97233472,108500.0,108490.0,0.34263701]
[1752030999682,0.97233472,108500.0,108490.0,0.29923925]
[1752030999878,0.97233472,108500.0,108490.0,0.08493245]
[1752031000078,1.29490362,108500.0,108490.0,0.11057021]
[1752031000578,0.1843068,108490.0,108480.0,0.11070843]
[1752031000881,0.84001205,108490.0,108480.0,0.29503223]
[1752031001082,0.84001205,108490.0,108480.0,0.31041223]
[1752031001275,0.84001205,108490.0,108480.0,0.12608843]
[1752031001475,0.84001205,108490.0,108480.0,0.11070843]
[1752031001682,0.84001205,108490.0,108480.0,0.29503223]
[1752031001977,0.84101205,108490.0,108480.0,0.29703223]
[1752031003084,0.84301205,108490.0,108480.0,0.29803223]
[1752031003281,0.87531205,108490.0,108480.0,0.00313822]
[1752031003487,0.87531205,108490.0,108480.0,0.18746202]
[1752031003689,0.6228168,108490.0,108480.0,0.18746202]
[1752031003985,0.87531205,108490.0,108480.0,0.18746202]
[1752031004889,0.92531205,108490.0,108480.0,0.18746202]
[1752031005483,0.92531205,108490.0,108480.0,0.20284202]
[1752031005689,0.92531205,108490.0,108480.0,0.18746202]
[1752031007790,0.2527068,108490.0,108480.0,0.43995727]
[1752031007990,0.2361368,108490.0,108480.0,0.80535727]
[1752031008290,0.05183,108490.0,108480.0,0.80755727]
[1752031008696,0.05183,108490.0,108480.0,0.52025727]
[1752031008994,0.2361369,108490.0,108480.0,0.52025727]
[1752031009397,0.2361369,108490.0,108480.0,0.53025727]
[1752031011299,0.2030369,108490.0,108480.0,0.53025727]
[1752031011498,0.1873069,108490.0,108480.0,0.55364727]
[1752031013603,0.1873069,108490.0,108480.0,0.90364727]
[1752031014792,0.1873069,108490.0,108480.0,0.65115202]
[1752031014992,0.1873069,108490.0,108480.0,0.90364727]
[1752031015590,0.003,108490.0,108480.0,0.90364727]
[1752031016099,0.003,108490.0,108480.0,0.55364727]
[1752031016395,0.003,108490.0,108480.0,0.66421748]
[1752031016699,0.003,108490.0,108480.0,0.98421748]
[1752031017198,0.003,108490.0,108480.0,0.66421748]
[1752031017498,0.003,108490.0,108480.0,0.41172223]
[1752031017698,0.003,108490.0,108480.0,0.66421748]
[1752031017897,0.003,108490.0,108480.0,1.03421748]
[1752031018100,0.2030368,108490.0,108480.0,0.66151748]
[1752031018292,0.2331368,108490.0,108480.0,0.66151748]
[1752031019001,0.2174068,108490.0,108480.0,0.66151748]
[1752031019203,0.2331368,108490.0,108480.0,0.66151748]
[1752031020503,0.0331,108490.0,108480.0,0.66151748]
[1752031020902,0.04883,108490.0,108480.0,0.66151748]
[1752031021405,0.2331368,108490.0,108480.0,0.66151748]
[1752031023308,0.2331368,108490.0,108480.0,0.40902223]
[1752031023506,0.2331368,108490.0,108480.0,0.66151748]
[1752031025008,0.2331368,108490.0,108480.0,0.40902223]
[1752031025411,0.2331368,108490.0,108480.0,0.66151748]
[1752031027203,0.2331368,108490.0,108480.0,0.40902223]
[1752031027502,0.2331368,108490.0,108480.0,0.66151748]
[1752031032809,0.2331368,108490.0,108480.0,1.30147748]
[1752031033206,0.2331368,108490.0,108480.0,1.04898223]
[1752031033407,0.2331368,108490.0,108480.0,1.30147748]
[1752031034918,0.2331368,108490.0,108480.0,1.19090727]
[1752031036220,0.2331368,108490.0,108480.0,1.32869388]
[1752031037019,0.2331368,108490.0,108480.0,1.07619863]
[1752031037213,0.2331368,108490.0,108480.0,1.32869388]
[1752031038817,0.0331,108490.0,108480.0,1.32869388]
[1752031039219,0.2174068,108490.0,108480.0,1.35969388]
[1752031039610,0.0331,108490.0,108480.0,1.35969388]
[1752031040125,0.0331,108490.0,108480.0,1.4703294]
[1752031040417,0.2174068,108490.0,108480.0,1.33254279]
[1752031040716,0.003,108490.0,108480.0,1.89503804]
[1752031040922,0.003,108490.0,108480.0,1.78440252]
[1752031041713,0.003,108490.0,108480.0,1.18190727]
[1752031041920,0.003,108490.0,108480.0,1.24190727]
[1752031043118,0.003,108490.0,108480.0,1.18190727]
[1752031043320,0.003,108490.0,108480.0,1.25190727]
[1752031043511,0.003,108490.0,108480.0,1.86737909]
[1752031044621,0.003,108490.0,108480.0,1.61488384]
[1752031045618,0.003,108490.0,108480.0,1.53190727]
[1752031046725,0.003,108490.0,108480.0,1.24190727]
[1752031047326,0.003,108490.0,108480.0,1.49440252]
[1752031047525,0.003,108490.0,108480.0,1.24190727]
[1752031048727,0.003,108490.0,108480.0,1.32487982]
[1752031049230,0.003,108490.0,108480.0,1.86503804]
[1752031049431,0.003,108490.0,108480.0,1.75440252]
[1752031050128,0.003,108490.0,108480.0,1.89218913]
[1752031051329,0.01932197,108500.0,108490.0,0.1843068]
[1752031051528,0.01932197,108500.0,108490.0,0.99364706]
[1752031051726,0.01932197,108500.0,108490.0,1.01752706]
[1752031051926,0.01932197,108500.0,108490.0,0.90694205]
[1752031052127,0.01932197,108500.0,108490.0,1.05891744]
[1752031052828,0.02132197,108500.0,108490.0,1.05991744]
[1752031053134,0.02132197,108500.0,108490.0,0.92213083]
[1752031053431,0.02332197,108500.0,108490.0,1.03364318]
[1752031053730,0.02332197,108500.0,108490.0,0.92313083]
[1752031054630,0.02332197,108500.0,108490.0,0.56313083]
[1752031055423,0.02332197,108500.0,108490.0,1.16975083]
[1752031055732,0.05352197,108500.0,108490.0,1.16975083]
[1752031057431,0.06885197,108500.0,108490.0,1.16975083]
[1752031057629,0.10175197,108500.0,108490.0,1.16975083]
[1752031058528,0.10175197,108500.0,108490.0,0.53283083]
[1752031058830,0.10175197,108500.0,108490.0,1.16947083]
[1752031059020,0.10175197,108500.0,108490.0,1.16935083]
[1752031061534,0.10175197,108500.0,108490.0,1.16956787]
[1752031062834,0.10175197,108500.0,108490.0,1.16944217]
[1752031063837,0.10175197,108500.0,108490.0,1.27991678]
[1752031067442,0.10175197,108500.0,108490.0,1.02754723]
[1752031067629,0.10175197,108500.0,108490.0,0.64339678]
[1752031067630,0.53841132,108500.0,108490.0,0.64339678]
[1752031067836,0.53841132,108500.0,108490.0,1.24977678]
[1752031068036,0.53841132,108500.0,108490.0,1.22495678]
[1752031068428,0.28604177,108500.0,108490.0,1.22495678]
[1752031068634,0.53841132,108500.0,108490.0,1.24977678]
[1752031069234,0.28604177,108500.0,108490.0,1.24977678]
[1752031069437,0.53841132,108500.0,108490.0,1.22495678]
[1752031069636,0.53841132,108500.0,108490.0,1.24977678]
[1752031069941,0.53841132,108500.0,108490.0,0.58931678]
[1752031070144,0.53841132,108500.0,108490.0,1.22491678]
[1752031070346,0.53841132,108500.0,108490.0,1.24973678]
[1752031070636,0.53841132,108500.0,108490.0,0.58931678]
[1752031070841,0.53841132,108500.0,108490.0,1.24969678]
[1752031071637,0.53841132,108500.0,108490.0,0.99732723]
[1752031071842,0.53841132,108500.0,108490.0,1.24961678]
[1752031075339,0.56247132,108500.0,108490.0,0.58931678]
[1752031075544,0.56247132,108500.0,108490.0,1.22431678]
[1752031076351,0.81484087,108500.0,108490.0,0.97194723]
[1752031076545,0.81484087,108500.0,108490.0,0.33694723]
[1752031076740,0.81484087,108500.0,108490.0,1.22423678]
[1752031077053,0.56247132,108500.0,108490.0,1.22423678]
[1752031077555,1.15484087,108500.0,108490.0,0.97186723]
[1752031081057,1.13951087,108500.0,108490.0,0.95610723]
[1752031081555,1.13951087,108500.0,108490.0,0.97177723]
[1752031083457,0.29477177,108500.0,108490.0,0.97177723]
[1752031083661,0.64336132,108500.0,108490.0,1.22414678]
[1752031084455,0.62714132,108500.0,108490.0,1.20847678]
[1752031084757,0.64336132,108500.0,108490.0,1.20847678]
[1752031085976,0.90336132,108500.0,108490.0,0.95610723]
[1752031086171,1.15573087,108500.0,108490.0,1.20847678]
[1752031086371,1.15573087,108500.0,108490.0,0.95610723]
[1752031086568,1.15573087,108500.0,108490.0,1.22414678]
[1752031086972,0.81573087,108500.0,108490.0,0.97177723]
[1752031087175,1.16573087,108500.0,108490.0,1.22414678]
[1752031088177,1.12573087,108500.0,108490.0,1.22414678]
[1752031089477,1.12573087,108500.0,108490.0,1.11367217]
[1752031089674,1.12573087,108500.0,108490.0,1.22414678]
[1752031090573,0.39099177,108500.0,108490.0,1.22414678]
[1752031090766,0.64336132,108500.0,108490.0,1.22414678]
[1752031092478,0.89573087,108500.0,108490.0,1.22414678]
[1752031094483,0.64336132,108500.0,108490.0,1.22414678]
[1752031094779,0.89573087,108500.0,108490.0,1.22414678]
[1752031099379,0.81573087,108500.0,108490.0,1.22414678]
[1752031099882,0.79167087,108500.0,108490.0,1.22414678]
[1752031100383,0.79167087,108500.0,108490.0,0.97177723]
[1752031100577,0.79097087,108500.0,108490.0,1.22291678]
[1752031101077,1.11097087,108500.0,108490.0,1.22291678]
[1752031101380,0.79097087,108500.0,108490.0,1.22327678]
[1752031101580,1.12097087,108500.0,108490.0,0.97090723]
[1752031102587,1.12097087,108500.0,108490.0,1.22327678]
[1752031102775,1.12097087,108500.0,108490.0,0.97090723]
[1752031103980,1.12962087,108500.0,108490.0,0.97090723]
[1752031106177,0.79962087,108500.0,108490.0,0.97090723]
[1752031106374,1.16514087,108500.0,108490.0,0.97090723]
[1752031107086,1.16514087,108500.0,108490.0,1.22327678]
[1752031107773,1.16514087,108500.0,108490.0,0.97090723]
[1752031108085,1.16514087,108500.0,108490.0,1.22327678]
[1752031108584,1.16514087,108500.0,108490.0,0.97090723]
[1752031108783,1.16514087,108500.0,108490.0,1.22327678]
[1752031111087,1.16514087,108500.0,108490.0,0.97090723]
[1752031111385,1.16514087,108500.0,108490.0,1.22327678]
[1752031113681,0.62071177,108500.0,108490.0,0.95570723]
[1752031113988,1.13097087,108500.0,108490.0,1.22327678]
[1752031114189,0.65623177,108500.0,108490.0,1.22327678]
[1752031114384,1.15097087,108500.0,108490.0,1.22327678]
[1752031115985,1.15097087,108500.0,108490.0,0.58875678]
[1752031117184,1.15097087,108500.0,108490.0,0.32118723]
[1752031117384,1.15962087,108500.0,108490.0,0.33638723]
[1752031118188,1.10962087,108500.0,108490.0,0.33638723]
[1752031119091,1.10962087,108500.0,108490.0,0.3363886]
[1752031119584,0.60488177,108500.0,108490.0,0.3363886]
[1752031119886,1.16514087,108500.0,108490.0,0.58875815]
[1752031120489,1.1458189,108500.0,108490.0,0.58875815]
[1752031121491,1.1458189,108500.0,108490.0,0.3363886]
[1752031121789,1.1458189,108500.0,108490.0,0.58875815]
[1752031122380,0.3710798,108500.0,108490.0,0.58875815]
[1752031122580,0.2910798,108500.0,108490.0,0.58875815]
[1752031122791,0.89344935,108500.0,108490.0,0.58875815]
[1752031122990,0.61344935,108500.0,108490.0,0.58875815]
[1752031124495,0.004,108500.0,108490.0,0.8546677]
[1752031124679,0.004,108500.0,108490.0,1.2689977]
[1752031124884,0.004,108500.0,108490.0,1.2963097]
[1752031125593,0.0193,108500.0,108490.0,1.2963097]
[1752031126687,0.0193,108500.0,108490.0,0.80852309]
[1752031126997,0.0193,108500.0,108490.0,1.13852309]
[1752031127598,0.0193,108500.0,108490.0,1.24910668]
[1752031127798,0.0193,108500.0,108490.0,1.32401583]
[1752031128094,0.0193,108500.0,108490.0,1.28404583]
[1752031128395,0.0193,108500.0,108490.0,1.30758583]
[1752031128785,0.0193,108500.0,108490.0,0.99758583]
[1752031129100,0.0193,108500.0,108490.0,1.01401583]
[1752031130000,0.02355,108500.0,108490.0,1.01401583]
[1752031130293,0.46020945,108500.0,108490.0,1.39748628]
[1752031130498,0.49280945,108500.0,108490.0,1.39748628]
[1752031130697,0.50860945,108500.0,108490.0,1.39748628]
[1752031130997,0.50860945,108500.0,108490.0,0.68673713]
[1752031131193,0.50860945,108500.0,108490.0,1.32245713]
[1752031131395,0.760979,108500.0,108490.0,0.40216758]
[1752031131595,0.760979,108500.0,108490.0,1.26659713]
[1752031131596,1.124989,108500.0,108490.0,1.26659713]
[1752031131899,1.121879,108500.0,108490.0,1.26659713]
[1752031132603,0.791879,108500.0,108490.0,1.26659713]
[1752031132898,1.161879,108500.0,108490.0,1.26659713]
[1752031133200,0.90950945,108500.0,108490.0,1.26659713]
[1752031133701,1.161879,108500.0,108490.0,1.26659713]
[1752031134199,0.90950945,108500.0,108490.0,1.26659713]
[1752031136798,0.53950945,108500.0,108490.0,1.26659713]
[1752031137399,0.2871399,108500.0,108490.0,1.26659713]
[1752031137702,0.53950945,108500.0,108490.0,1.26659713]
[1752031137904,0.53950945,108500.0,108490.0,1.29013713]
[1752031138103,0.53950945,108500.0,108490.0,1.27013713]
[1752031138707,0.2871399,108500.0,108490.0,1.27013713]
[1752031138899,0.53950945,108500.0,108490.0,1.27013713]
[1752031139506,0.52420945,108500.0,108490.0,1.27013713]
[1752031141205,0.52420945,108500.0,108490.0,1.27013748]
[1752031142209,0.53949945,108500.0,108490.0,1.27013748]
[1752031142404,0.2871299,108500.0,108490.0,1.27013748]
[1752031142610,0.53949945,108500.0,108490.0,1.27013748]
[1752031142808,0.2871299,108500.0,108490.0,1.27013748]
[1752031143008,0.53949945,108500.0,108490.0,1.27013748]
[1752031144414,0.2871299,108500.0,108490.0,1.27013748]
[1752031144608,0.53949945,108500.0,108490.0,1.27013748]
[1752031151116,0.53949945,108500.0,108490.0,1.15955298]
[1752031157226,0.53949945,108500.0,108490.0,0.90718343]
[1752031157426,0.53949945,108500.0,108490.0,1.15955298]
[1752031157824,0.2871299,108500.0,108490.0,1.15955298]
[1752031158114,0.02354,108500.0,108490.0,1.41192253]
[1752031158322,0.02354,108500.0,108490.0,1.91230914]
[1752031160118,0.2078304,108500.0,108490.0,1.07756938]
[1752031160322,0.2078304,108500.0,108490.0,1.32993893]
[1752031160921,0.46019995,108500.0,108490.0,1.32993893]
[1752031165237,0.46019995,108500.0,108490.0,1.07756938]
[1752031165435,0.46019995,108500.0,108490.0,1.32993893]
[1752031165836,0.46019995,108500.0,108490.0,1.07756938]
[1752031166136,0.46019995,108500.0,108490.0,1.32993894]
[1752031167332,0.2078304,108500.0,108490.0,1.32993894]
[1752031167536,0.46019995,108500.0,108490.0,1.32993894]
[1752031168338,0.2078304,108500.0,108490.0,1.32993894]
[1752031168733,0.46019995,108500.0,108490.0,1.32993894]
[1752031170139,0.02354,108500.0,108490.0,1.3027413]
[1752031170838,0.2078304,108500.0,108490.0,1.3027413]
[1752031171637,0.02354,108500.0,108490.0,1.28833532]
[1752031171939,0.46019995,108500.0,108490.0,1.3027413]
[1752031172137,0.2078304,108500.0,108490.0,1.3027413]
[1752031172942,0.2078304,108500.0,108490.0,1.32016091]
[1752031176148,0.2078304,108500.0,108490.0,1.06779136]
[1752031176444,0.2078304,108500.0,108490.0,1.32016091]
[1752031179545,0.46019995,108500.0,108490.0,1.32016091]
[1752031180252,0.2078304,108500.0,108490.0,1.32016091]
[1752031180451,0.02354,108500.0,108490.0,1.32016091]
[1752031180749,0.2402304,108500.0,108490.0,1.32016091]
[1752031180949,0.49259995,108500.0,108490.0,1.32016091]
[1752031182657,0.49259995,108500.0,108490.0,1.30575493]
[1752031182847,0.49259995,108500.0,108490.0,1.20957194]
[1752031183557,0.05594,108500.0,108490.0,1.20957194]
[1752031183750,0.02354,108500.0,108490.0,1.20957194]
[1752031184054,0.02354,108500.0,108490.0,1.46194149]
[1752031185456,0.02154,108500.0,108490.0,1.46094149]
[1752031185754,0.02254,108500.0,108490.0,1.5725509]
[1752031185954,0.02254,108500.0,108490.0,1.89814492]
[1752031186254,0.02254,108500.0,108490.0,1.91255087]
[1752031186754,0.02154,108500.0,108490.0,1.91455087]
[1752031188158,0.02154,108500.0,108490.0,1.57455087]
[1752031188458,0.05464,108500.0,108490.0,1.57455087]
[1752031190557,0.05464,108500.0,108490.0,1.46394146]
[1752031190747,0.02154,108500.0,108490.0,1.80394146]
[1752031191758,0.02154,108500.0,108490.0,1.46394146]
[1752031191959,0.02154,108500.0,108490.0,1.81394146]
[1752031194157,0.02154,108500.0,108490.0,1.92455105]
[1752031194561,0.02154,108500.0,108490.0,1.6721815]
[1752031194762,0.05274,108500.0,108490.0,1.6721815]
[1752031196558,0.05274,108500.0,108490.0,1.56157191]
[1752031197956,0.30510955,108500.0,108490.0,1.30920236]
[1752031198155,0.05274,108500.0,108490.0,1.56157191]
[1752031198562,0.05274,108500.0,108490.0,1.69935852]
[1752031199762,0.30510955,108500.0,108490.0,1.66675852]
[1752031200659,0.32099955,108500.0,108490.0,1.66675852]
[1752031201053,0.35129955,108500.0,108490.0,1.66675852]
[1752031201252,0.09893,108500.0,108490.0,1.66675852]
[1752031201456,0.08304,108500.0,108490.0,1.66675852]
[1752031202062,0.08304,108500.0,108490.0,1.41438897]
[1752031202263,0.33540955,108500.0,108490.0,1.66675852]
[1752031202562,0.08304,108500.0,108490.0,1.66675852]
[1752031204469,0.7879595,108500.0,108490.0,0.36791897]
[1752031204656,1.1479595,108500.0,108490.0,0.22013236]
[1752031204857,1.16734629,108500.0,108490.0,0.22013297]
[1752031205058,1.16734629,108500.0,108490.0,0.14643602]
[1752031205360,1.16734629,108500.0,108490.0,0.22013357]
[1752031205562,1.16734629,108500.0,108490.0,0.22013347]
[1752031205864,1.16734629,108500.0,108490.0,0.30307279]
[1752031206758,0.66260719,108500.0,108490.0,0.30307279]
[1752031206961,1.16734629,108500.0,108490.0,0.57159234]
[1752031207961,0.62497674,108500.0,108490.0,0.57159234]
[1752031208262,0.83075629,108500.0,108490.0,0.31922279]
[1752031208571,1.16075629,108500.0,108490.0,0.31922279]
[1752031208756,0.65601719,108500.0,108490.0,0.31922279]
[1752031208959,0.90847741,108500.0,108490.0,0.31922279]
[1752031209967,1.54139741,108500.0,108490.0,0.31922279]
[1752031210767,1.54139741,108500.0,108490.0,0.31922393]
[1752031211770,1.54139741,108500.0,108490.0,0.30307393]
[1752031215182,1.54139741,108500.0,108490.0,0.31857393]
[1752031215372,1.54139741,108500.0,108490.0,0.30307393]
[1752031216276,1.54139741,108500.0,108490.0,0.31857393]
[1752031216480,1.54139741,108500.0,108490.0,0.30307393]
[1752031216781,1.54139741,108500.0,108490.0,0.30307413]
[1752031218180,1.54139741,108500.0,108490.0,0.31857413]
[1752031218380,1.54139741,108500.0,108490.0,0.30307413]
[1752031218583,1.54139741,108500.0,108490.0,0.31857413]
[1752031220179,1.54139741,108500.0,108490.0,0.37378749]
[1752031222780,1.21139741,108500.0,108490.0,0.37378749]
[1752031222980,1.55139741,108500.0,108490.0,0.37378749]
[1752031226480,0.40601719,108500.0,108490.0,0.62624771]
[1752031226676,1.03893719,108500.0,108490.0,0.62624771]
[1752031227071,1.29139741,108500.0,108490.0,0.37378749]
[1752031227885,1.29139741,108500.0,108490.0,0.31857413]
[1752031229189,1.03893719,108500.0,108490.0,0.31857413]
[1752031229484,0.99959719,108500.0,108490.0,0.57103435]
[1752031229688,0.99959719,108500.0,108490.0,0.60213435]
[1752031229894,1.04041719,108500.0,108490.0,0.60213435]
[1752031230390,1.04041719,108500.0,108490.0,0.51919503]
[1752031230790,1.04041719,108500.0,108490.0,0.51914661]
[1752031230791,1.29282899,108500.0,108490.0,0.51914661]
[1752031231291,1.29282899,108500.0,108490.0,0.51914632]
[1752031231689,1.29282899,108500.0,108490.0,0.62975617]
[1752031231890,1.83524079,108500.0,108490.0,0.33074437]
[1752031233982,1.83524079,108500.0,108490.0,0.31633676]
[1752031234301,1.83524079,108500.0,108490.0,0.33074437]
[1752031235192,1.83524079,108500.0,108490.0,0.34624437]
[1752031235393,1.83524079,108500.0,108490.0,0.33074437]
[1752031235992,1.04041719,108500.0,108490.0,0.33074437]
[1752031236294,1.78524079,108500.0,108490.0,0.33074437]
[1752031236696,1.78524079,108500.0,108490.0,0.34624437]
[1752031236992,1.78524079,108500.0,108490.0,0.33074437]
[1752031237394,1.15236079,108500.0,108490.0,0.33074437]
[1752031237587,1.78520079,108500.0,108490.0,0.33074437]
[1752031238294,1.01435719,108500.0,108490.0,0.59865617]
[1752031238495,1.26676899,108500.0,108490.0,0.59865617]
[1752031239597,0.63392899,108500.0,108490.0,0.59865617]
[1752031239790,0.98955719,108500.0,108490.0,0.59865617]
[1752031240095,1.24196899,108500.0,108490.0,0.62895617]
[1752031240388,0.64994899,108500.0,108490.0,0.62895617]
[1752031240599,1.28278899,108500.0,108490.0,0.62895617]
[1752031241898,1.24196899,108500.0,108490.0,0.61345617]
[1752031242195,1.26676899,108500.0,108490.0,0.62895617]
[1752031244591,1.01435719,108500.0,108490.0,0.62895617]
[1752031244997,1.82918079,108500.0,108490.0,0.58315617]
[1752031247198,0.94435719,108500.0,108490.0,0.58315617]
[1752031247499,1.03061719,108500.0,108490.0,0.58315617]
[1752031247795,1.54302899,108500.0,108490.0,0.59976617]
[1752031248399,1.82544079,108500.0,108490.0,0.59976617]
[1752031248599,1.82544079,108500.0,108490.0,0.59976601]
[1752031248900,1.53302899,108500.0,108490.0,0.59976601]
[1752031249295,1.53302899,108500.0,108490.0,0.34735421]
[1752031249497,1.53302899,108500.0,108490.0,0.59976601]
[1752031250402,1.04061719,108500.0,108490.0,0.59976601]
[1752031250602,1.29302899,108500.0,108490.0,0.59976601]
[1752031251200,1.04061719,108500.0,108490.0,0.59976601]
[1752031251396,1.29302899,108500.0,108490.0,0.34735421]
[1752031251598,1.27557899,108500.0,108490.0,0.59976577]
[1752031251903,1.27557899,108500.0,108490.0,0.34735397]
[1752031252201,1.27557899,108500.0,108490.0,0.59976577]
[1752031252400,1.02316719,108500.0,108490.0,0.59976577]
[1752031252592,1.27557899,108500.0,108490.0,0.59976577]
[1752031253298,1.02316719,108500.0,108490.0,0.59976577]
[1752031253601,1.27557899,108500.0,108490.0,0.59976577]
[1752031255694,0.36671719,108500.0,108490.0,0.59976577]
[1752031255899,0.36671719,108500.0,108490.0,0.88347757]
[1752031255900,0.90831719,108500.0,108490.0,0.88347757]
[1752031256099,0.90831719,108500.0,108490.0,0.91467757]
[1752031256302,0.90831719,108500.0,108490.0,0.66226577]
[1752031256593,0.90831719,108500.0,108490.0,0.68568577]
[1752031256798,0.87711719,108500.0,108490.0,0.68568577]
[1752031257301,0.87711719,108500.0,108490.0,0.43327397]
[1752031257501,0.86085719,108500.0,108490.0,0.68568577]
[1752031257701,0.87711719,108500.0,108490.0,0.68568577]
[1752031258406,0.69282679,108500.0,108490.0,0.68568577]
[1752031258601,0.05718679,108500.0,108490.0,0.68568577]
[1752031259003,0.24147719,108500.0,108490.0,0.68568577]
[1752031260605,0.24147719,108500.0,108490.0,0.43327397]
[1752031260907,0.24147719,108500.0,108490.0,0.68568577]
[1752031261298,0.05718679,108500.0,108490.0,0.93809757]
[1752031261602,0.04092679,108500.0,108490.0,0.91044548]
[1752031262007,0.04092679,108500.0,108490.0,0.65803283]
[1752031262805,0.05718679,108500.0,108490.0,0.65803283]
[1752031263006,0.05718679,108500.0,108490.0,0.40562103]
[1752031263205,0.05718679,108500.0,108490.0,0.65803283]
[1752031265006,0.04092679,108500.0,108490.0,0.61800283]
[1752031265309,0.04092679,108500.0,108490.0,0.65803283]
[1752031265502,0.05718679,108500.0,108490.0,0.65803283]
[1752031265804,0.05718679,108500.0,108490.0,0.57507507]
[1752031267002,0.05718679,108500.0,108490.0,0.43327312]
[1752031267203,0.05718679,108500.0,108490.0,0.68568492]
[1752031270213,0.05718679,108500.0,108490.0,0.57507507]
[1752031270414,0.05718679,108500.0,108490.0,0.32266327]
[1752031270613,0.05718679,108500.0,108490.0,0.57507507]
[1752031270914,0.05718679,108500.0,108490.0,0.57507494]
[1752031271620,0.05718679,108500.0,108490.0,0.68568479]
[1752031271917,0.05718679,108500.0,108490.0,0.6856848]
[1752031272110,0.04092679,108500.0,108490.0,0.6856848]
[1752031272312,0.04092679,108500.0,108490.0,0.9380966]
[1752031272810,0.04092679,108500.0,108490.0,1.3180966]
[1752031273010,0.04092679,108500.0,108490.0,0.813273]
[1752031273216,0.04092679,108500.0,108490.0,1.3180966]
[1752031273617,0.04092679,108500.0,108490.0,0.813273]
[1752031273814,0.04092679,108500.0,108490.0,1.3180966]
[1752031274719,0.04092679,108500.0,108490.0,1.0656848]
[1752031275521,0.04092679,108500.0,108490.0,1.3180966]
[1752031276622,0.04092679,108500.0,108490.0,1.31809626]
[1752031280220,0.04092679,108500.0,108490.0,1.20748641]
[1752031280419,0.04092679,108500.0,108490.0,1.34527302]
[1752031284229,0.04092679,108500.0,108490.0,0.84044942]
[1752031284420,0.04092679,108500.0,108490.0,1.09286122]
[1752031285628,0.07282679,108500.0,108490.0,1.09286122]
[1752031286224,0.07282679,108500.0,108490.0,1.31742122]
[1752031286425,0.07282679,108500.0,108490.0,1.68762122]
[1752031289325,0.07282679,108500.0,108490.0,1.43520942]
[1752031289626,0.07282679,108500.0,108490.0,1.68762122]
[1752031292028,0.07282679,108500.0,108490.0,1.65742122]
[1752031292928,0.07282679,108500.0,108490.0,1.64000161]
[1752031293325,0.08895679,108500.0,108490.0,1.00424161]
[1752031293529,0.52565909,108500.0,108490.0,1.23807161]
[1752031293725,0.55795909,108500.0,108490.0,0.93291161]
[1752031293928,0.88795909,108500.0,108490.0,1.64864045]
[1752031294131,0.88795909,108500.0,108490.0,1.51085384]
[1752031294334,0.88795909,108500.0,108490.0,1.400285]
[1752031294536,0.88795909,108500.0,108490.0,1.51085417]
[1752031295833,0.88795909,108500.0,108490.0,0.87569417]
[1752031296034,0.55795909,108500.0,108490.0,1.20093508]
[1752031296835,0.89795909,108500.0,108490.0,1.20093508]
[1752031297133,0.92131909,108500.0,108490.0,1.09036591]
[1752031298635,0.55795909,108500.0,108490.0,1.09036591]
[1752031298835,0.65131909,108500.0,108490.0,1.09036591]
[1752031299137,0.62795909,108500.0,108490.0,1.09036591]
[1752031299938,0.37554729,108500.0,108490.0,1.09036591]
[1752031300135,0.62795909,108500.0,108490.0,1.09036591]
[1752031300834,0.62795909,108500.0,108490.0,1.11394591]
[1752031301028,0.62795909,108500.0,108490.0,1.09036591]
[1752031302041,0.90795909,108500.0,108490.0,1.08980591]
[1752031302231,0.93131909,108500.0,108490.0,1.08980591]